fUST/lending_fUST_20240411
["ID","MTS","AMOUNT","RATE_DAILY","PERIOD"]
[322104142,1712777444877,-1420.73,0.00032876,5]
[322104143,1712777444887,-500.0,0.00032876,5]
[322104144,1712777444896,-151.0,0.00032876,2]
[322104145,1712777444905,-151.0,0.00032876,2]
[322104146,1712777444915,-500.81484132,0.00032876,5]
[322104147,1712777444924,-151.0,0.00032876,2]
[322104148,1712777444934,-500.0,0.00032876,5]
[322104149,1712777444943,-500.0,0.00032876,5]
[322104150,1712777444952,-2623.87,0.00032876,5]
[322104151,1712777444961,-500.0,0.00032876,5]
[322104152,1712777444970,-2494.22,0.00032876,5]
[322104153,1712777444979,-500.0,0.00032876,5]
[322104154,1712777444988,-500.0,0.00032876,5]
[322104155,1712777444998,-500.0,0.00032876,5]
[322104156,1712777445007,-500.0,0.00032876,5]
[322104157,1712777445016,-500.0,0.00032876,5]
[322104158,1712777445025,-500.37597184,0.00032876,5]
[322104159,1712777445034,-500.0,0.00032876,5]
[322104160,1712777445043,-500.0,0.00032876,5]
[322104161,1712777445052,-774.12,0.00032876,5]
[322104162,1712777445061,-1447.54,0.00032876,5]
[322104163,1712777445070,-3216.15,0.00032876,5]
[322104164,1712777445079,-500.0,0.00032876,5]
[322104165,1712777445089,-19042.49,0.00032876,5]
[322104166,1712777445098,-500.0,0.00032876,5]
[322104167,1712777445108,-541.01,0.00032876,5]
[322104168,1712777445117,-1115.1,0.00032876,5]
[322104169,1712777445127,-500.0,0.00032876,5]
[322104170,1712777445136,-500.0,0.00032876,5]
[322104171,1712777445145,-500.0,0.00032876,5]
[322104172,1712777445154,-4031.98,0.00032876,5]
[322104173,1712777445163,-1962.544389,0.00032876,2]
[322104174,1712777445173,-500.0,0.00032876,5]
[322104175,1712777445182,-1962.544389,0.00032876,2]
[322104176,1712777445192,-1962.544389,0.00032876,2]
[322104177,1712777445201,-1962.544389,0.00032876,2]
[322104178,1712777445210,-500.0,0.00032876,5]
[322104179,1712777445220,-1282.03,0.00032876,5]
[322104180,1712777445229,-151.0,0.00032876,2]
[322104181,1712777445238,-151.0,0.00032876,2]
[322104182,1712777445246,-151.0,0.00032876,2]
[322104183,1712777445342,-151.0,0.00032876,2]
[322104184,1712777445352,-500.0,0.00032876,5]
[322104185,1712777445362,-151.0,0.00032876,2]
[322104186,1712777445371,-500.0,0.00032876,5]
[322104188,1712777445380,-500.0,0.00032876,5]
[322104189,1712777445389,-500.0,0.00032876,5]
[322104190,1712777445399,-500.0,0.00032876,5]
[322104191,1712777445408,-500.0,0.00032876,5]
[322104192,1712777445418,-151.674312,0.00032876,2]
[322104193,1712777445427,-4844.88762344,0.00032876,5]
[322104194,1712777445442,-8288.72335,0.00032876,5]
[322104195,1712777445453,-541.78890451,0.00032876,5]
[322104196,1712777445466,-418.92167327,0.00032876,5]
[322104210,1712778547194,-221.313438,0.00027397,2]
[322104211,1712778547214,-160.11940423,0.00027397,2]
[322104212,1712778556126,-41.71243077,0.00027397,2]
[322104213,1712778557431,-156.5090987,0.00030676,2]
[322104214,1712778557455,-166.666666,0.00030716,2]
[322104215,1712778557476,-176.8242353,0.00030776,2]
[322104216,1712778562913,273.0032678,0.00028676,2]
[322104246,1712778632595,-150.83408251,0.0003121,2]
[322104248,1712778632607,-166.666666,0.00031553,2]
[322104250,1712778632617,-180.408073,0.00031615,2]
[322104252,1712778632627,-171.2823539,0.0003179,2]
[322104254,1712778632637,-568.7849943,0.00031796,2]
[322104256,1712778632646,-156.5090987,0.00032,2]
[322104258,1712778632656,-299.55749358,0.00032,2]
[322104259,1712778632666,-166.666666,0.00032391,2]
[322104261,1712778632676,-756.77837108,0.00032519,2]
[322104307,1712778638576,-1243.22162892,0.00032519,2]
[322104308,1712778638586,-1210.78934384,0.00032712,2]
[322104309,1712778638596,-1210.91030182,0.00032712,2]
[322104310,1712778638606,-400.0,0.00032716,2]
[322104311,1712778638616,-1000.0,0.00032717,2]
[322104312,1712778638625,-300.0,0.0003275,2]
[322104313,1712778638635,-436.98272209,0.00032775,2]
[322104314,1712778638645,-205.99864379,0.00032776,2]
[322104315,1712778638654,-175.48121488,0.00032776,2]
[322104316,1712778638663,-157.88991728,0.00032776,6]
[322104317,1712778638673,-308.30388543,0.00032876,5]
[322104419,1712778643741,-500.0,0.00032876,5]
[322104421,1712778643751,-617.27,0.00032876,5]
[322104423,1712778643761,-1045.07,0.00032876,5]
[322104425,1712778643770,-500.0,0.00032876,5]
[322104427,1712778643779,-500.0,0.00032876,5]
[322104429,1712778643788,-500.0,0.00032876,5]
[322104431,1712778643797,-500.0,0.00032876,5]
[322104433,1712778643807,-500.0,0.00032876,5]
[322104435,1712778643816,-500.0,0.00032876,5]
[322104437,1712778643825,-500.0,0.00032876,5]
[322104439,1712778643838,-151.0,0.00032876,2]
[322104441,1712778643847,-500.0,0.00032876,5]
[322104442,1712778643856,-500.0,0.00032876,5]
[322104443,1712778643868,-500.0,0.00032876,5]
[322104445,1712778643877,-500.0,0.00032876,5]
[322104447,1712778643886,-500.0,0.00032876,5]
[322104449,1712778643895,-500.0,0.00032876,5]
[322104451,1712778643903,-500.0,0.00032876,5]
[322104453,1712778643913,-500.0,0.00032876,5]
[322104455,1712778643925,-500.0,0.00032876,5]
[322104457,1712778643935,-500.0,0.00032876,5]
[322104459,1712778643944,-1080.32,0.00032876,5]
[322104461,1712778643953,-500.0,0.00032876,5]
[322104463,1712778643962,-500.0,0.00032876,5]
[322104465,1712778643971,-500.0,0.00032876,5]
[322104467,1712778643981,-151.0,0.00032876,2]
[322104469,1712778643990,-500.0,0.00032876,5]
[322104471,1712778643999,-500.0,0.00032876,5]
[322104473,1712778644008,-523.0,0.00032876,5]
[322104475,1712778644019,-500.0,0.00032876,5]
[322104477,1712778644028,-151.0,0.00032876,2]
[322104479,1712778644037,-500.0,0.00032876,5]
[322104481,1712778644046,-500.0,0.00032876,5]
[322104483,1712778644056,-500.0,0.00032876,5]
[322104484,1712778644065,-500.0,0.00032876,5]
[322104485,1712778644074,-500.0,0.00032876,5]
[322104486,1712778644084,-500.0,0.00032876,5]
[322104487,1712778644095,-500.0,0.00032876,5]
[322104488,1712778644105,-500.0,0.00032876,5]
[322104489,1712778644120,-500.0,0.00032876,5]
[322104490,1712778644129,-502.51188825,0.00032876,5]
[322104491,1712778644138,-500.0,0.00032876,5]
[322104492,1712778644148,-500.0,0.00032876,5]
[322104493,1712778644160,-1414.36,0.00032876,5]
[322104494,1712778644169,-500.0,0.00032876,5]
[322104495,1712778644178,-500.0,0.00032876,5]
[322104496,1712778644187,-3544.4,0.00032876,5]
[322104497,1712778644196,-1925.72,0.00032876,5]
[322104498,1712778644206,-601.04,0.00032876,5]
[322104499,1712778644215,-500.0,0.00032876,5]
[322104500,1712778644224,-7506.76,0.00032876,5]
[322104501,1712778644233,-500.0,0.00032876,5]
[322104502,1712778644242,-1518.75,0.00032876,5]
[322104503,1712778644251,-500.0,0.00032876,5]
[322104504,1712778644261,-2424.06,0.00032876,5]
[322104505,1712778644270,-500.0,0.00032876,5]
[322104506,1712778644282,-500.0,0.00032876,5]
[322104507,1712778644291,-500.0,0.00032876,5]
[322104508,1712778644300,-500.0,0.00032876,5]
[322104509,1712778644310,-614.39,0.00032876,5]
[322104510,1712778644319,-5642.18,0.00032876,5]
[322104511,1712778644329,-500.0,0.00032876,5]
[322104512,1712778644338,-832.66,0.00032876,5]
[322104513,1712778644348,-500.0,0.00032876,5]
[322104514,1712778644357,-500.0,0.00032876,5]
[322104515,1712778644371,-884.22,0.00032876,5]
[322104516,1712778644382,-500.0,0.00032876,5]
[322104517,1712778644391,-1205.62,0.00032876,5]
[322104518,1712778644400,-151.0,0.00032876,2]
[322104519,1712778644409,-500.0,0.00032876,5]
[322104520,1712778644420,-934.18,0.00032876,5]
[322104521,1712778644430,-790.38,0.00032876,5]
[322104522,1712778644440,-1833.16,0.00032876,5]
[322104523,1712778644449,-1629.07,0.00032876,5]
[322104524,1712778644459,-500.0,0.00032876,5]
[322104525,1712778644469,-724.59,0.00032876,5]
[322104526,1712778644479,-3051.66,0.00032876,5]
[322104527,1712778644490,-151.0,0.00032876,2]
[322104528,1712778644499,-1361.53,0.00032876,5]
[322104529,1712778644509,-709.5,0.00032876,5]
[322104530,1712778644518,-500.0,0.00032876,5]
[322104531,1712778644527,-500.0,0.00032876,5]
[322104532,1712778644537,-500.0,0.00032876,5]
[322104533,1712778644546,-500.0,0.00032876,5]
[322104534,1712778644555,-2390.29,0.00032876,5]
[322104535,1712778644564,-500.0,0.00032876,5]
[322104536,1712778644575,-500.0,0.00032876,5]
[322104537,1712778644584,-220.43775689,0.00032876,5]
[322104563,1712779649150,-310.8546676,0.00027397,2]
[322104564,1712779649173,-298.68963383,0.00027397,2]
[322104565,1712779749124,-117.68328517,0.00027397,2]
[322104566,1712779749145,-300.0,0.00029847,2]
[322104567,1712779749167,-24900.0,0.00029848,2]
[322104568,1712779749204,-179.766088,0.00029887,2]
[322104569,1712779749229,-166.666666,0.00030007,2]
[322104570,1712779749254,-9740.4329818,0.00030016,2]
[322104571,1712779749276,-250.0,0.00030016,2]
[322104572,1712779749302,-1102.6652475,0.00030307,2]
[322104573,1712779749323,-1938.4665346,0.00030374,2]
[322104574,1712779749345,-169.9992705,0.00030571,2]
[322104575,1712779749366,-200.0,0.00030696,2]
[322104576,1712779749386,-264.33738393,0.00030776,2]
[322104577,1712779762098,-151.49799,0.00027397,2]
[322104578,1712779770113,-3.34716485,0.00027397,2]
[322104579,1712779770132,-691.04683546,0.00027397,2]
[322104580,1712779770152,-227.20879384,0.00027916,2]
[322104581,1712779789300,156.94775326,0.00027397,2]
[322104582,1712779790291,690.45445724,0.00027397,2]
[322104672,1712779832702,-166.666666,0.00030825,2]
[322104674,1712779832711,-178.329174,0.00031106,2]
[322104676,1712779832719,-166.666666,0.00031643,2]
[322104678,1712779832728,-1210.78934384,0.00032057,2]
[322104680,1712779832737,-1210.91030182,0.00032057,2]
[322104682,1712779832746,-400.0,0.00032149,2]
[322104684,1712779832756,-500.0,0.0003215,120]
[322104686,1712779832765,-50.16924242,0.0003215,120]
[322104688,1712779832776,-449.83075758,0.0003215,120]
[322104690,1712779832785,-646.57,0.0003215,120]
[322104692,1712779832795,-153.0,0.00032378,2]
[322104694,1712779832804,-166.666666,0.00032461,2]
[322104696,1712779832813,-175.48121488,0.00032776,2]
[322104698,1712779832822,-393.8225335,0.00032776,6]
[322104700,1712779832831,-381.43284223,0.00032875,2]
[322104702,1712779832841,-500.0,0.00032876,5]
[322104704,1712779832850,-500.0,0.00032876,5]
[322104706,1712779832859,-500.0,0.00032876,5]
[322104708,1712779832868,-556.68862396,0.00032876,5]
[322104710,1712779832877,-500.0,0.00032876,5]
[322104712,1712779832886,-500.0,0.00032876,5]
[322104713,1712779832895,-501.3116989,0.00032876,5]
[322104715,1712779832904,-500.0,0.00032876,5]
[322104717,1712779832917,-500.0,0.00032876,5]
[322104719,1712779832928,-500.0,0.00032876,5]
[322104721,1712779832937,-500.0,0.00032876,5]
[322104723,1712779832946,-500.0,0.00032876,5]
[322104725,1712779832955,-151.0,0.00032876,2]
[322104727,1712779832964,-185.816553,0.00032876,2]
[322104729,1712779832974,-255.04864999,0.00032876,5]
[322104731,1712779832987,-500.0,0.00032876,5]
[322104733,1712779832996,-500.0,0.00032876,5]
[322104735,1712779833005,-213.33045996,0.00032876,5]
[322104737,1712779833017,-286.66954004,0.00032876,5]
[322104739,1712779833026,-500.0,0.00032876,5]
[322104741,1712779833036,-500.0,0.00032876,5]
[322104743,1712779833045,-72.1944377,0.00032876,5]
[322104756,1712779833158,-427.8055623,0.00032876,5]
[322104757,1712779833167,-500.0,0.00032876,5]
[322104758,1712779833176,-500.0,0.00032876,5]
[322104759,1712779833185,-422.80300729,0.00032876,5]
[322104760,1712779833194,-500.0,0.00032876,5]
[322104761,1712779833203,-500.0,0.00032876,5]
[322104762,1712779833212,-1035.31,0.00032876,5]
[322104763,1712779833222,-500.0,0.00032876,5]
[322104764,1712779833236,-500.0,0.00032876,5]
[322104765,1712779833245,-500.0,0.00032876,5]
[322104766,1712779833254,-500.0,0.00032876,5]
[322104767,1712779833263,-500.0,0.00032876,5]
[322104769,1712779833273,-500.0,0.00032876,5]
[322104771,1712779833282,-500.0,0.00032876,5]
[322104772,1712779833292,-501.2,0.00032876,5]
[322104774,1712779833301,-500.0,0.00032876,5]
[322104776,1712779833311,-500.0,0.00032876,5]
[322104778,1712779833322,-500.0,0.00032876,5]
[322104779,1712779833331,-591.55,0.00032876,5]
[322104780,1712779833342,-1355.43,0.00032876,5]
[322104782,1712779833351,-500.0,0.00032876,5]
[322104783,1712779833360,-576.0,0.00032876,5]
[322104784,1712779833369,-6926.22,0.00032876,5]
[322104785,1712779833378,-1845.48,0.00032876,5]
[322104786,1712779833387,-1855.15,0.00032876,5]
[322104787,1712779833396,-500.0,0.00032876,5]
[322104788,1712779833405,-3396.72,0.00032876,5]
[322104789,1712779833414,-500.0,0.00032876,5]
[322104790,1712779833423,-500.0,0.00032876,5]
[322104791,1712779833432,-588.79,0.00032876,5]
[322104792,1712779833442,-500.0,0.00032876,5]
[322104793,1712779833451,-500.0,0.00032876,5]
[322104794,1712779833460,-7193.98,0.00032876,5]
[322104795,1712779833470,-500.0,0.00032876,5]
[322104796,1712779833478,-500.0,0.00032876,5]
[322104797,1712779833488,-895.26,0.00032876,5]
[322104798,1712779833496,-5407.09,0.00032876,5]
[322104799,1712779833506,-2323.06,0.00032876,5]
[322104800,1712779833515,-732.91,0.00032876,5]
[322104801,1712779833525,-1561.19,0.00032876,5]
[322104802,1712779833534,-500.0,0.00032876,5]
[322104803,1712779833542,-151.0,0.00032876,2]
[322104804,1712779833551,-151.0,0.00032876,2]
[322104805,1712779833561,-151.0,0.00032876,2]
[322104806,1712779833569,-757.44,0.00032876,5]
[322104807,1712779833578,-280.42213729,0.00032876,5]
[322104808,1712779833588,-1155.39,0.00032876,5]
[322104809,1712779833597,-679.93,0.00032876,5]
[322104810,1712779833606,-500.0,0.00032876,5]
[322104811,1712779833615,-1756.78,0.00032876,5]
[322104812,1712779833623,-847.37,0.00032876,5]
[322104813,1712779833632,-797.97,0.00032876,5]
[322104814,1712779833641,-500.0,0.00032876,5]
[322104815,1712779833651,-500.0,0.00032876,5]
[322104816,1712779833660,-199.109944,0.00032876,2]
[322104817,1712779833669,-1304.8,0.00032876,5]
[322104818,1712779833679,-500.0,0.00032876,5]
[322104819,1712779833687,-2924.51,0.00032876,5]
[322104820,1712779833697,-1068.64,0.00032876,5]
[322104821,1712779833706,-500.0,0.00032876,5]
[322104822,1712779833716,-2514.54,0.00032876,5]
[322104823,1712779833725,-500.0,0.00032876,5]
[322104824,1712779833734,-500.0,0.00032876,5]
[322104825,1712779833743,-2290.7,0.00032876,5]
[322104826,1712779833752,-500.0,0.00032876,5]
[322104827,1712779833761,-741.87,0.00032876,5]
[322104828,1712779833771,-1378.04,0.00032876,5]
[322104829,1712779833780,-3082.15,0.00032876,5]
[322104830,1712779833790,-500.0,0.00032876,5]
[322104831,1712779833799,-1570.035511,0.00032876,2]
[322104832,1712779833808,-1570.035511,0.00032876,2]
[322104833,1712779833818,-1570.035511,0.00032876,2]
[322104834,1712779833826,-1570.035511,0.00032876,2]
[322104835,1712779833835,-1570.035511,0.00032876,2]
[322104836,1712779833845,-1570.035511,0.00032876,2]
[322104837,1712779833855,-518.47,0.00032876,5]
[322104838,1712779833864,-1001.53,0.00032876,5]
[322104839,1712779833873,-500.0,0.00032876,5]
[322104840,1712779833882,-151.0,0.00032876,2]
[322104841,1712779833892,-266.645453,0.00032876,2]
[322104842,1712779833901,-18249.05,0.00032876,5]
[322104843,1712779833912,-16206.03,0.00032876,5]
[322104844,1712779833921,-973.28,0.00032876,5]
[322104845,1712779833931,-571.83883088,0.00032876,5]
[322104846,1712779833940,-500.0,0.00032876,5]
[322104847,1712779833950,-500.0,0.00032876,5]
[322104848,1712779833960,-1228.61,0.00032876,5]
[322104849,1712779833969,-500.0,0.00032876,5]
[322104850,1712779833978,-243.95948227,0.00032876,5]
[322104851,1712779833987,-3863.98,0.00032876,5]
[322104852,1712779833997,-151.0,0.00032876,2]
[322104853,1712779834006,-151.0,0.00032876,2]
[322104854,1712779834015,-151.0,0.00032876,2]
[322104855,1712779834025,-530.25,0.00032876,5]
[322104856,1712779834034,-500.0,0.00032876,5]
[322104857,1712779834043,-500.0,0.00032876,5]
[322104858,1712779834053,-500.0,0.00032876,5]
[322104859,1712779834062,-500.0,0.00032876,5]
[322104860,1712779834071,-637.09408538,0.00032876,5]
[322104861,1712779834080,-1176.88,0.00032876,5]
[322104862,1712779834089,-500.0,0.00032876,5]
[322104863,1712779834098,-500.0,0.00032876,5]
[322104864,1712779834108,-500.0,0.00032876,5]
[322104865,1712779834210,-227.20879384,0.00032916,2]
[322104866,1712779834220,-1000.0,0.00033,33]
[322104867,1712779834229,-1000.0,0.00033,2]
[322104868,1712779834241,-514.73950824,0.00033,2]
[322104869,1712779834254,-71.26049176,0.00033,2]
[322104870,1712779834264,-175.48121488,0.0003305,2]
[322104871,1712779834273,-158.55609735,0.00033148,4]
[322104872,1712779834282,-133.70874608,0.00033148,4]
[322104893,1712779838652,-1817.54,0.00032876,5]
[322104895,1712779838662,-6637.63,0.00032876,5]
[322104897,1712779838671,-1076.75873809,0.00033148,4]
[322104899,1712779838680,-1486.87,0.00033149,2]
[322104901,1712779838689,-1486.87,0.00033149,2]
[322104903,1712779838698,-1486.87,0.00033149,2]
[322104905,1712779838707,-1486.87,0.00033149,2]
[322104907,1712779838716,-1486.87,0.00033149,2]
[322104909,1712779838725,-1486.87,0.00033149,2]
[322104911,1712779838734,-1486.87,0.00033149,2]
[322104913,1712779838743,-4134.64803646,0.0003315,2]
[322104915,1712779838753,-155.12774901,0.0003315,4]
[322104917,1712779838763,-500.0,0.0003315,5]
[322104919,1712779838772,-500.0,0.0003315,5]
[322104921,1712779838781,-500.0,0.0003315,5]
[322104923,1712779838791,-500.0,0.0003315,5]
[322104924,1712779838800,-500.0,0.0003315,5]
[322104926,1712779838810,-500.0,0.0003315,5]
[322104928,1712779838819,-500.0,0.0003315,5]
[322104930,1712779838828,-500.0,0.0003315,5]
[322104932,1712779838837,-500.0,0.0003315,5]
[322104934,1712779838846,-500.0,0.0003315,5]
[322104936,1712779838855,-506.41669898,0.0003315,5]
[322104938,1712779838864,-500.0,0.0003315,5]
[322104940,1712779838873,-500.0,0.0003315,5]
[322104942,1712779838883,-500.0,0.0003315,5]
[322104944,1712779838892,-500.0,0.0003315,5]
[322104946,1712779838901,-500.0,0.0003315,5]
[322104948,1712779838909,-500.0,0.0003315,5]
[322104950,1712779838920,-500.0,0.0003315,5]
[322104952,1712779838929,-357.0585463,0.0003315,5]
[322104954,1712779838937,-1035.31,0.0003315,5]
[322104956,1712779838946,-500.0,0.0003315,5]
[322104958,1712779838955,-500.0,0.0003315,5]
[322104960,1712779838964,-500.0,0.0003315,5]
[322104962,1712779838974,-500.0,0.0003315,5]
[322104964,1712779838985,-500.0,0.0003315,5]
[322104966,1712779838994,-500.0,0.0003315,5]
[322104968,1712779839003,-501.2,0.0003315,5]
[322104970,1712779839012,-500.0,0.0003315,5]
[322104972,1712779839021,-487.68326749,0.0003315,5]
[322104974,1712779839030,-500.0,0.0003315,5]
[322104976,1712779839043,-591.55,0.0003315,5]
[322104978,1712779839059,-1355.43,0.0003315,5]
[322104980,1712779839068,-500.0,0.0003315,5]
[322104982,1712779839077,-576.0,0.0003315,5]
[322104984,1712779839086,-1845.48,0.0003315,5]
[322104986,1712779839096,-1855.15,0.0003315,5]
[322104988,1712779839105,-500.0,0.0003315,5]
[322104990,1712779839114,-2207.94094099,0.0003315,5]
[322104992,1712779839126,-1188.77905901,0.0003315,5]
[322104994,1712779839135,-500.0,0.0003315,5]
[322104996,1712779839144,-500.0,0.0003315,5]
[322104998,1712779839153,-588.79,0.0003315,5]
[322105000,1712779839162,-500.0,0.0003315,5]
[322105002,1712779839171,-500.0,0.0003315,5]
[322105004,1712779839180,-7193.98,0.0003315,5]
[322105006,1712779839189,-500.0,0.0003315,5]
[322105008,1712779839199,-500.0,0.0003315,5]
[322105010,1712779839208,-895.26,0.0003315,5]
[322105012,1712779839217,-3030.10286705,0.0003315,5]
[322105014,1712779839232,-2376.98713295,0.0003315,5]
[322105016,1712779839242,-2323.06,0.0003315,5]
[322105018,1712779839251,-732.91,0.0003315,5]
[322105019,1712779839260,-94.85006558,0.0003315,5]
[322105033,1712779841076,-1466.33993442,0.0003315,5]
[322105034,1712779841086,-500.0,0.0003315,5]
[322105035,1712779841096,-757.44,0.0003315,5]
[322105036,1712779841105,-1155.39,0.0003315,5]
[322105037,1712779841114,-679.93,0.0003315,5]
[322105038,1712779841123,-500.0,0.0003315,5]
[322105039,1712779841132,-1756.78,0.0003315,5]
[322105040,1712779841141,-847.37,0.0003315,5]
[322105041,1712779841151,-797.97,0.0003315,5]
[322105042,1712779841160,-500.0,0.0003315,5]
[322105043,1712779841169,-500.0,0.0003315,5]
[322105044,1712779841178,-1304.8,0.0003315,5]
[322105045,1712779841187,-500.0,0.0003315,5]
[322105046,1712779841196,-1787.91219994,0.0003315,5]
[322105059,1712779843866,-1136.59780006,0.0003315,5]
[322105060,1712779843875,-1068.64,0.0003315,5]
[322105061,1712779843884,-500.0,0.0003315,5]
[322105062,1712779843893,-2514.54,0.0003315,5]
[322105063,1712779843902,-500.0,0.0003315,5]
[322105064,1712779843911,-500.0,0.0003315,5]
[322105065,1712779843921,-53.5338526,0.0003315,5]
[322105066,1712779843933,-2237.1661474,0.0003315,5]
[322105067,1712779843942,-500.0,0.0003315,5]
[322105068,1712779843951,-741.87,0.0003315,5]
[322105069,1712779843960,-1378.04,0.0003315,5]
[322105070,1712779843969,-3082.15,0.0003315,5]
[322105071,1712779843979,-500.0,0.0003315,5]
[322105072,1712779843988,-1570.035511,0.0003315,2]
[322105073,1712779843997,-1570.035511,0.0003315,2]
[322105074,1712779844006,-1570.035511,0.0003315,2]
[322105075,1712779844015,-1570.035511,0.0003315,2]
[322105076,1712779844024,-1570.035511,0.0003315,2]
[322105077,1712779844033,-1570.035511,0.0003315,2]
[322105078,1712779844042,-1570.035511,0.0003315,2]
[322105079,1712779844051,-1570.035511,0.0003315,2]
[322105080,1712779844061,-1570.035511,0.0003315,2]
[322105081,1712779844069,-518.47,0.0003315,5]
[322105082,1712779844079,-1570.035511,0.0003315,2]
[322105083,1712779844212,-1570.035511,0.0003315,2]
[322105084,1712779844227,-1570.035511,0.0003315,2]
[322105085,1712779844241,-1001.53,0.0003315,5]
[322105086,1712779844250,-500.0,0.0003315,5]
[322105087,1712779844259,-18249.05,0.0003315,5]
[322105088,1712779844268,-16206.03,0.0003315,5]
[322105089,1712779844277,-973.28,0.0003315,5]
[322105090,1712779844286,-500.0,0.0003315,5]
[322105091,1712779844295,-500.0,0.0003315,5]
[322105092,1712779844304,-1228.61,0.0003315,5]
[322105093,1712779844316,-500.0,0.0003315,5]
[322105094,1712779844325,-3863.98,0.0003315,5]
[322105095,1712779844334,-151.0,0.0003315,2]
[322105096,1712779844343,-530.25,0.0003315,5]
[322105097,1712779844353,-151.0,0.0003315,2]
[322105098,1712779844363,-192.357816,0.0003315,2]
[322105099,1712779844372,-500.0,0.0003315,5]
[322105100,1712779844382,-500.0,0.0003315,5]
[322105101,1712779844391,-500.0,0.0003315,5]
[322105102,1712779844401,-603.78485228,0.0003315,5]
[322105103,1712779844410,-1176.88,0.0003315,5]
[322105104,1712779844419,-500.0,0.0003315,5]
[322105105,1712779844428,-500.0,0.0003315,5]
[322105106,1712779844437,-500.0,0.0003315,5]
[322105107,1712779844447,-1817.54,0.0003315,5]
[322105108,1712779844456,-6637.63,0.0003315,5]
[322105109,1712779844465,-270.36369,0.00033165,2]
[322105110,1712779844475,-221.313438,0.00033165,2]
[322105111,1712779844484,-201.831835,0.00033165,2]
[322105112,1712779844493,-416.372919,0.00033165,2]
[322105113,1712779844502,-949.4261,0.000332,2]
[322105114,1712779844511,-393.82253346,0.00033201,6]
[322105115,1712779844520,-166.666666,0.00033279,2]
[322105116,1712779844529,-153.0,0.00033342,2]
[322105117,1712779844538,-1077.87348828,0.00033417,13]
[322105118,1712779844547,-1486.87,0.00033423,2]
[322105119,1712779844556,-1570.035511,0.00033423,2]
[322105120,1712779844566,-1570.03552,0.00033423,2]
[322105121,1712779844575,-500.0,0.00033424,5]
[322105122,1712779844584,-500.0,0.00033424,5]
[322105123,1712779844594,-500.0,0.00033424,5]
[322105124,1712779844604,-500.0,0.00033424,5]
[322105125,1712779844614,-500.0,0.00033424,5]
[322105126,1712779844623,-500.0,0.00033424,5]
[322105127,1712779844633,-500.0,0.00033424,5]
[322105128,1712779844642,-500.0,0.00033424,5]
[322105129,1712779844651,-500.0,0.00033424,5]
[322105130,1712779844659,-500.0,0.00033424,5]
[322105131,1712779844668,-500.0,0.00033424,5]
[322105132,1712779844677,-500.0,0.00033424,5]
[322105133,1712779844686,-500.0,0.00033424,5]
[322105134,1712779844695,-125.36723708,0.00033424,5]
[322105186,1712780831155,-243.327321,0.00027397,2]
[322105187,1712780831185,-199.182094,0.00027397,2]
[322105188,1712780831208,-166.666666,0.00030819,2]
[322105189,1712780831230,-150.0,0.0003105,2]
[322105190,1712780831253,-162.93637258,0.00031559,2]
[322105191,1712780831276,-166.666666,0.00031659,2]
[322105192,1712780831299,-295.36690013,0.00031827,5]
[322105193,1712780831321,-400.0,0.0003188,2]